[Event "Oslo Chess Festival 2018"]
[Site "Oslo"]
[Date "2018.10.05"]
[Round "8"]
[White "Cherniaev, Alexander"]
[Black "Gonzalez, Francisco Silva"]
[Result "1-0"]
[ECO "C78"]
[WhiteElo "2384"]
[BlackElo "2145"]
[Annotator "NA RC"]
[PlyCount "59"]
[EventDate "2018.09.30"]
[EventCountry "NOR"]
[SourceTitle "playchess.com"]
[Source "ChessBase"]
[SourceQuality "1"]
[TimeControl "90/30+30:0"]

1. e4 {[%emt 0:00:00]} e5 {[%emt 0:00:00]} 2. Nf3 {[%emt 0:00:00]} Nc6 {[%emt 0:00:00]} 3. Bb5 {[%emt 0:00:00]} a6 {[%emt 0:00:00]} 4. Ba4 {[%emt 0:00:00]} Nf6 {[%emt 0:00:00]} 5. O-O {[%emt 0:00:00]} Bc5 {[%emt 0:00:00]} 6. c3 {[%emt 0:00:00]} b5 {[%emt 0:00:00]} 7. Bc2 {[%emt 0:00:00]} d6 {[%emt 0:00:00]} 8. d4 {[%emt 0:00:00]} Bb6 {[%emt 0:00:00]} 9. h3 {[%emt 0:00:00]} Bd7 {[%emt 0:00:00]} 10. a3 {[%emt 0:00:00]} O-O {[%emt 0:00:00]} 11. Be3 {[%emt 0:00:00]} Re8 {[%emt 0:00:00]} 12. Nbd2 {[%emt 0:00:00]} h6 $11 {[%emt 0:00:00]} 13. Re1 {[%emt 0:00:00]} Rb8 {[%emt 0:00:00]} 14. b4 {[%emt 0:00:00]} a5 {[%emt 0:00:00]} 15. Rb1 {[%emt 0:00:00]} axb4 {[%emt 0:00:00]} 16. axb4 {[%emt 0:00:00]} Qc8 {[%emt 0:00:00]} 17. Bd3 {[%emt 0:00:00]} d5 {[%emt 0:00:00]} 18. Nxe5 {[%emt 0:00:00]} Nxe5 {[%emt 0:18:00]} 19. dxe5 {[%emt 0:00:00]} Rxe5 {[%emt 0:00:00]} 20. f4 Re8 {[%emt 0:22:03]} 21. e5 {[%emt 0:07:16]} c5 {[%emt 0:00:00]} 22. bxc5 Bxc5 {[%emt 0:00:00]} 23. Bd4 Bxd4+ 24. cxd4 {[%emt 0:00:00]} Qc3 {[%emt 0:00:00]} 25. Nb3 {[%emt 0:00:00]} Nh7 {[%emt 0:00:00]} 26. Qf3 {[%emt 0:00:00]} Qb4 {[%emt 0:00:00]} 27. Bxh7+ {[%emt 0:00:00]} Kxh7 {[%emt 0:00:00]} 28. Qd3+ {[%emt 0:00:00]} g6 {[%emt 0:00:00]} 29. Nc5 {[%emt 0:00:00]} Bf5 {[%emt 0:00:00]} 30. Rxb4 {[%emt 0:00:00]} 1-0

[Event "Oslo Chess Festival 2018"]
[Site "Oslo"]
[Date "2018.10.05"]
[Round "8"]
[White "Vijayalakshmi, Subbaraman"]
[Black "Smeby, Ole"]
[Result "1-0"]
[ECO "E60"]
[WhiteElo "2359"]
[BlackElo "1998"]
[Annotator "NA RC"]
[PlyCount "57"]
[EventDate "2018.09.30"]
[EventCountry "NOR"]
[SourceTitle "playchess.com"]
[Source "ChessBase"]
[SourceQuality "1"]
[TimeControl "90/30+30:0"]

1. Nf3 {[%emt 0:00:00]} Nf6 {[%emt 0:00:00]} 2. g3 {[%emt 0:00:00]} g6 {[%emt 0:00:00]} 3. Bg2 {[%emt 0:00:00]} Bg7 {[%emt 0:00:00]} 4. d4 {[%emt 0:00:00]} O-O {[%emt 0:00:00]} 5. b3 {[%emt 0:00:00]} c5 {[%emt 0:00:00]} 6. O-O {[%emt 0:00:00]} Nc6 {[%emt 0:00:00]} 7. Bb2 {[%emt 0:00:00]} cxd4 {[%emt 0:00:00]} 8. Nxd4 {[%emt 0:00:00] LiveBook: 4 Games} Nxd4 {[%emt 0:00:00]} 9. Bxd4 {[%emt 0:00:00]} Qc7 {[%emt 0:00:00]} 10. c4 {[%emt 0:00:00]} d6 {[%emt 0:00:00]} 11. Nc3 {[%emt 0:00:00] E60: King's Indian: Unusual lines and Fianchetto Variation without Nc3} Bd7 {[%emt 0:00:00]} (11... a6 12. Rc1 Be6 13. Qd2 Rfe8 14. Rfd1 Rab8 15. Na4 Nd7 16. Be3 b6 17. Nc3 Rec8 18. Nd5 Bxd5 19. cxd5 {1-0 (38) Georgiadis,N (2465)-Jancovic,P (2171) Wroclaw 2014}) 12. Bxf6 {[%emt 0:00:00]} exf6 {[%emt 0:00:00]} 13. Nd5 {[%emt 0:00:00]} Qb8 $146 {[%emt 0:00:00]} ({Predecessor:} 13... Qd8 14. Qd2 Bc6 15. Rad1 Rc8 16. Nb4 Bxg2 17. Kxg2 Re8 18. e3 f5 {0-1 (44) Hoehn,M (2075)-Guenther,P (2212) Germany 2014}) 14. Qd2 {[%emt 0:00:00]} Re8 {[%emt 0:00:00]} 15. Rad1 {[%emt 0:00:00]} Bc6 {[%emt 0:00:00]} 16. e3 {[%emt 0:00:00]} Qd8 {[%emt 0:00:00]} 17. Nf4 {[%emt 0:00:00]} Bxg2 {[%emt 0:00:00]} 18. Kxg2 {[%emt 0:00:00]} f5 {[%emt 0:00:00]} 19. Qxd6 {[%emt 0:00:00]} Qa5 {[%emt 0:00:00]} 20. Qd2 {[%emt 0:00:00]} Bc3 {[%emt 0:00:00]} 21. Qc2 {[%emt 0:00:00]} Bg7 {[%emt 0:00:00]} 22. Rd5 {[%emt 0:00:00]} Qc7 {[%emt 0:00:00]} 23. Rfd1 {[%emt 0:00:00]} Qc6 {[%emt 0:00:00]} 24. Kg1 {[%emt 0:00:00]} Rab8 {[%emt 0:00:00]} 25. Rd6 {[%emt 0:00:00]} Qf3 {[%emt 0:00:00]} 26. Rd7 {[%emt 0:00:00]} a6 {[%emt 0:00:00]} 27. c5 {[%emt 0:00:00]} g5 {[%emt 0:00:00]} 28. Qxf5 $18 {[%emt 0:00:00]} f6 {[%emt 0:00:00]} 29. Rxg7+ {[%emt 0:00:00]} 1-0

[Event "Oslo Chess Festival 2018"]
[Site "Oslo"]
[Date "2018.10.05"]
[Round "8"]
[White "Mikalsen, Erlend"]
[Black "Pavlovic, Milos"]
[Result "0-1"]
[ECO "B87"]
[WhiteElo "2332"]
[BlackElo "2481"]
[Annotator "RC"]
[PlyCount "46"]
[EventDate "2018.09.30"]
[EventCountry "NOR"]
[SourceTitle "playchess.com"]
[Source "ChessBase"]
[SourceQuality "1"]
[TimeControl "90/30+30:0"]

1. e4 {[%emt 0:00:00]} c5 {[%emt 0:00:00]} 2. Nf3 {[%emt 0:00:00]} d6 {[%emt 0:00:00]} 3. d4 {[%emt 0:00:00]} cxd4 {[%emt 0:00:00]} 4. Nxd4 {[%emt 0:00:00]} Nf6 {[%emt 0:00:00]} 5. Nc3 {[%emt 0:00:00]} a6 {[%emt 0:00:00]} 6. Bc4 {[%emt 0:00:00]} e6 {[%emt 0:00:00]} 7. Bb3 {[%emt 0:00:00]} b5 {[%emt 0:00:00]} 8. f4 {[%emt 0:00:00]} Bb7 {[%emt 0:00:00]} 9. e5 {[%emt 0:00:00]} dxe5 {[%emt 0:00:00]} 10. fxe5 {[%emt 0:00:00]} Bc5 {[%emt 0:00:00]} 11. Be3 {[%emt 0:00:00]} Bxd4 {[%emt 0:00:00]} 12. Bxd4 {[%emt 0:00:00]} Nc6 {[%emt 0:00:00]} 13. exf6 {[%emt 0:00:00]} Qxd4 {[%emt 0:00:00]} 14. fxg7 {[%emt 0:00:00]} Qxg7 {[%emt 0:00:00]} 15. O-O {[%emt 0:00:00]} Nd4 {[%emt 0:00:00]} 16. Rf2 {[%emt 0:00:00]} O-O-O {[%emt 0:00:00]} 17. Qf1 {[%emt 0:00:00]} Rhg8 {[%emt 0:00:00]} 18. a4 {[%emt 0:00:00]} b4 {[%emt 0:00:05]} 19. Qc4+ {[%emt 0:00:00]} Kb8 {[%emt 0:00:04]} 20. Qxb4 {[%emt 0:00:00]} Qg4 {[%emt 0:02:53]} 21. Qb6 {[%emt 0:00:00]} Ka8 {[%emt 0:01:34]} 22. Nb5 {[%emt 0:00:00]} Nxb5 {[%emt 0:00:09]} 23. axb5 {[%emt 0:00:00]} Rd1+ {[%emt 0:00:04]} 0-1

[Event "Oslo Chess Festival 2018"]
[Site "Oslo"]
[Date "2018.10.05"]
[Round "8"]
[White "Vasyliv, Stanislav"]
[Black "Ranaldi, Lucas"]
[Result "1-0"]
[ECO "E94"]
[WhiteElo "2142"]
[BlackElo "2335"]
[Annotator "NA RC"]
[PlyCount "53"]
[EventDate "2018.09.30"]
[EventCountry "NOR"]
[SourceTitle "playchess.com"]
[Source "ChessBase"]
[SourceQuality "1"]
[TimeControl "90/30+30:0"]

1. d4 {[%emt 0:00:00]} Nf6 {[%emt 0:00:00]} 2. Nf3 {[%emt 0:00:00]} g6 {[%emt 0:00:00]} 3. c4 {[%emt 0:00:00]} Bg7 {[%emt 0:00:00]} 4. Nc3 {[%emt 0:00:00]} O-O {[%emt 0:00:00]} 5. e4 {[%emt 0:00:00]} d6 {[%emt 0:00:00]} 6. Be2 {[%emt 0:00:00]} Na6 {[%emt 0:00:00]} 7. O-O {[%emt 0:00:00]} e5 {[%emt 0:00:00]} 8. Be3 {[%emt 0:00:00]} Ng4 {[%emt 0:00:00]} 9. Bg5 {[%emt 0:00:00]} Qe8 {[%emt 0:00:00]} 10. Re1 {[%emt 0:00:00] E94: King's Indian: Classical: 6 Be2 e5 7 0-0: Various Black 7th moves} exd4 {[%emt 0:00:00]} 11. Nd5 {[%emt 0:00:00]} f6 {[%emt 0:00:00]} 12. Bf4 {[%emt 0:00:00]} c6 {[%emt 0:00:00]} 13. Bxd6 {[%emt 0:00:00]} cxd5 {[%emt 0:00:00]} 14. exd5 {[%emt 0:00:00]} Rf7 {[%emt 0:00:00]} 15. c5 {[%emt 0:00:00]} Qd8 {[%emt 0:00:00] [#]} 16. Bxa6 $146 {[%emt 0:00:00]} ({Predecessor:} 16. Nxd4 Nh6 17. Ne6 Bxe6 18. dxe6 Re7 19. c6 Nc7 20. cxb7 Rb8 21. Bxe7 Qxe7 22. Qd7 {1-0 (22) Kasimdzhanov,R (2679)-Pruijssers,R (2458) Netherlands 2009}) 16... bxa6 {[%emt 0:00:00]} 17. Nxd4 {[%emt 0:00:00]} f5 {[%emt 0:00:00]} 18. Ne6 {[%emt 0:00:00]} Bxe6 {[%emt 0:00:00]} 19. dxe6 {[%emt 0:00:00]} Re7 $18 {[%emt 0:00:00]} 20. Bxe7 {[%emt 0:00:00]} Qxe7 {[%emt 0:00:00]} 21. Qd7 {[%emt 0:00:00]} Qxc5 {[%emt 0:08:09]} 22. Qf7+ {[%emt 0:00:00]} Kh8 {[%emt 0:00:01]} 23. e7 {[%emt 0:00:00]} Qxf2+ {[%emt 0:00:32]} 24. Kh1 {[%emt 0:00:00]} h6 {[%emt 0:01:38]} 25. e8=Q+ {[%emt 0:00:00]} Rxe8 {[%emt 0:00:11]} 26. Rxe8+ {[%emt 0:00:00]} Kh7 {[%emt 0:00:08]} 27. Qg8# {[%emt 0:00:02]} 1-0

[Event "Oslo Chess Festival 2018"]
[Site "Oslo"]
[Date "2018.10.05"]
[Round "8"]
[White "Abdrlauf, Elham"]
[Black "Nordquelle, Daniel"]
[Result "0-1"]
[ECO "C10"]
[WhiteElo "2080"]
[BlackElo "2235"]
[Annotator "NA RC"]
[PlyCount "52"]
[EventDate "2018.09.30"]
[EventCountry "NOR"]
[SourceTitle "playchess.com"]
[Source "ChessBase"]
[SourceQuality "1"]
[TimeControl "90/30+30:0"]

1. e4 {[%emt 0:00:00]} e6 {[%emt 0:00:00]} 2. d4 {[%emt 0:00:00]} d5 {[%emt 0:00:00]} 3. Nd2 {[%emt 0:00:00]} Be7 {[%emt 0:00:00]} 4. Ngf3 {[%emt 0:00:00]} dxe4 {[%emt 0:00:00]} 5. Nxe4 {[%emt 0:00:00]} Nf6 {[%emt 0:00:00]} 6. Bd3 {[%emt 0:00:00]} Nbd7 {[%emt 0:00:00]} 7. O-O {[%emt 0:00:00]} b6 {[%emt 0:00:00]} 8. Ne5 {[%emt 0:00:00]} Bb7 $16 {[%emt 0:00:00]} 9. Nxf7 {[%emt 0:00:00]} Kxf7 {[%emt 0:00:00]} 10. Ng5+ {[%emt 0:00:00]} Kg8 {[%emt 0:00:00]} 11. Nxe6 {[%emt 0:00:00]} Qc8 {[%emt 0:00:00]} 12. Nf4 {[%emt 0:00:00]} Nd5 {[%emt 0:00:00]} 13. Bf5 {[%emt 0:00:00]} Nxf4 {[%emt 0:00:00]} 14. Bxf4 {[%emt 0:00:00]} Qd8 {[%emt 0:00:00]} 15. Be6+ {[%emt 0:00:00]} Kf8 {[%emt 0:00:00]} 16. c4 {[%emt 0:00:00]} Bd6 {[%emt 0:00:00]} 17. Bxd6+ {[%emt 0:00:00]} cxd6 {[%emt 0:00:00]} 18. d5 {[%emt 0:00:00]} Nc5 {[%emt 0:00:00]} 19. Re1 {[%emt 0:00:00]} Nxe6 {[%emt 0:00:00]} 20. Rxe6 {[%emt 0:00:00]} Bc8 {[%emt 0:00:00]} 21. Qf3+ {[%emt 0:00:00]} Kg8 {[%emt 0:00:00]} 22. Rae1 {[%emt 0:00:00]} Bxe6 {[%emt 0:00:00]} 23. dxe6 {[%emt 0:00:00]} Qf8 {[%emt 0:00:00]} 24. Qd5 {[%emt 0:00:00]} Re8 {[%emt 0:00:00]} 25. e7+ {[%emt 0:00:00]} Qf7 {[%emt 0:00:00]} 26. Qxd6 {[%emt 0:00:00]} h5 {[%emt 0:00:00]} 0-1

[Event "Oslo Chess Festival 2018"]
[Site "Oslo"]
[Date "2018.10.06"]
[Round "9"]
[White "Dziuba, Marcin"]
[Black "Kaasen, Tor Fredrik"]
[Result "1/2-1/2"]
[ECO "E11"]
[WhiteElo "2573"]
[BlackElo "2388"]
[Annotator "ChessBase"]
[PlyCount "117"]
[EventDate "2018.09.30"]
[EventCountry "NOR"]
[SourceTitle "playchess.com"]
[Source "ChessBase"]
[SourceQuality "1"]
[TimeControl "40/5400+30:1800+30"]

1. d4 {[%emt 0:00:00]} Nf6 {[%emt 0:01:06]} 2. c4 {[%emt 0:00:00]} e6 {[%emt 0:00:10]} 3. Nf3 {[%emt 0:00:00]} Bb4+ {[%emt 0:01:26]} 4. Nbd2 {[%emt 0:00:00]} O-O {[%emt 0:03:46]} 5. a3 {[%emt 0:00:10]} Be7 {[%emt 0:00:36]} 6. e4 {[%emt 0:02:30]} d6 {[%emt 0:01:00]} 7. Be2 {[%emt 0:02:48]} Nbd7 {[%emt 0:00:25]} 8. O-O {[%emt 0:00:58]} e5 {[%emt 0:01:59]} 9. b4 {[%emt 0:02:15]} c6 {[%emt 0:06:03]} 10. Bb2 {[%emt 0:01:15]} Qc7 {[%emt 0:00:19]} 11. Qc2 {[%emt 0:05:19]} Re8 {[%emt 0:01:14]} 12. c5 {[%emt 0:11:17]} exd4 {[%emt 0:08:40]} 13. Bxd4 {[%emt 0:01:31]} dxc5 {[%emt 0:03:43]} 14. bxc5 {[%emt 0:01:24]} b6 {[%emt 0:01:52]} 15. cxb6 {[%emt 0:10:24]} axb6 {[%emt 0:00:34]} 16. Bc4 {[%emt 0:00:03]} Bd6 {[%emt 0:09:19]} 17. Ng5 {[%emt 0:36:21]} Re7 {[%emt 0:06:33]} 18. Ndf3 {[%emt 0:04:58]} Bf4 {[%emt 0:16:32]} 19. Rae1 {[%emt 0:04:19]} Ra5 {[%emt 0:07:42]} 20. Nxf7 {[%emt 0:08:15]} Rxf7 {[%emt 0:01:27]} 21. Qb3 {[%emt 0:00:32]} Nc5 {[%emt 0:02:23]} 22. Bxc5 {[%emt 0:01:44]} Rxc5 {[%emt 0:01:05]} 23. Bxf7+ {[%emt 0:00:04]} Qxf7 {[%emt 0:00:07]} 24. Qxb6 {[%emt 0:00:03]} Qe7 {[%emt 0:01:37]} 25. e5 {[%emt 0:00:46]} Nd5 {[%emt 0:02:47]} 26. Qb8 {[%emt 0:00:21]} Qf8 {[%emt 0:01:27]} 27. Rb1 {[%emt 0:02:28]} Bg4 {[%emt 0:05:45]} 28. Qa7 {[%emt 0:01:31]} Rb5 {[%emt 0:02:08]} 29. Nd4 {[%emt 0:00:04]} Rxb1 {[%emt 0:02:21]} 30. Rxb1 {[%emt 0:00:01]} Bxe5 {[%emt 0:00:07]} 31. Nxc6 {[%emt 0:00:05]} Bc7 {[%emt 0:01:45]} 32. Qd4 {[%emt 0:00:37]} Be6 {[%emt 0:00:10]} 33. Nb4 {[%emt 0:02:47]} Qf5 {[%emt 0:03:35]} 34. Re1 {[%emt 0:01:21]} Bb6 {[%emt 0:01:20]} 35. Nxd5 {[%emt 0:00:05]} Bxd4 {[%emt 0:01:35]} 36. Ne7+ {[%emt 0:00:04]} Kf7 {[%emt 0:00:06]} 37. Nxf5 {[%emt 0:00:02]} Bxf5 {[%emt 0:00:03]} 38. a4 {[%emt 0:00:24]} Kf6 {[%emt 0:01:46]} 39. Rd1 {[%emt 0:01:42]} Ke5 {[%emt 0:00:37]} 40. a5 {[%emt 0:00:15]} Bc8 {[%emt 0:00:42]} 41. Rc1 {[%emt 0:31:16]} Ba6 {[%emt 0:32:12]} 42. h4 {[%emt 0:00:00]} Ke4 {[%emt 0:00:00]} 43. Rc7 {[%emt 0:00:00]} Kd5 {[%emt 0:00:00]} 44. g3 {[%emt 0:00:00]} Kd6 {[%emt 0:00:00]} 45. Rf7 {[%emt 0:00:00]} Ke6 {[%emt 0:00:00]} 46. Rf8 {[%emt 0:00:00]} Ke7 {[%emt 0:00:00]} 47. Ra8 {[%emt 0:00:00]} Bb7 {[%emt 0:00:00]} 48. Rb8 {[%emt 0:00:00]} Ba6 {[%emt 0:00:00]} 49. Kg2 {[%emt 0:00:00]} Kd7 {[%emt 0:00:00]} 50. f3 {[%emt 0:00:00]} Kc7 {[%emt 0:00:00]} 51. Rb1 {[%emt 0:00:00]} Kc6 {[%emt 0:00:00]} 52. g4 {[%emt 0:00:00]} Bb5 {[%emt 0:00:00]} 53. f4 {[%emt 0:00:00]} Kc5 {[%emt 0:00:00]} 54. Kg3 {[%emt 0:00:00]} Bc3 {[%emt 0:00:00]} 55. Rc1 {[%emt 0:00:00]} Kd4 {[%emt 0:00:00]} 56. Rd1+ {[%emt 0:00:00]} Kc5 {[%emt 0:00:00]} 57. Rc1 {[%emt 0:00:00]} Kd4 {[%emt 0:00:00]} 58. Rb1 {[%emt 0:00:59]} Kc5 {[%emt 0:00:00]} 59. Rc1 {[%emt 0:00:15]} 1/2-1/2

[Event "Oslo Chess Festival 2018"]
[Site "Oslo"]
[Date "2018.10.06"]
[Round "9"]
[White "Pavlovic, Milos"]
[Black "Basso, Pier Luigi"]
[Result "1-0"]
[ECO "C54"]
[WhiteElo "2481"]
[BlackElo "2530"]
[Annotator "RC"]
[PlyCount "81"]
[EventDate "2018.09.30"]
[EventCountry "NOR"]
[SourceTitle "playchess.com"]
[Source "ChessBase"]
[SourceQuality "1"]
[TimeControl "40/5400+30:1800+30"]

1. e4 {[%emt 0:00:00]} e5 {[%emt 0:05:24]} 2. Nf3 {[%emt 0:00:00]} Nc6 {[%emt 0:00:03]} 3. Bc4 {[%emt 0:00:44]} Bc5 {[%emt 0:00:03]} 4. d3 {[%emt 0:00:21]} Nf6 {[%emt 0:00:06]} 5. O-O {[%emt 0:00:09]} O-O {[%emt 0:00:05]} 6. Nbd2 {[%emt 0:00:12]} d6 {[%emt 0:00:30]} 7. c3 {[%emt 0:00:48]} a5 {[%emt 0:00:06]} 8. h3 {[%emt 0:05:35]} Be6 {[%emt 0:03:38]} 9. Bb5 {[%emt 0:19:06]} Qb8 {[%emt 0:00:43]} 10. b3 {[%emt 0:04:56]} Qa7 {[%emt 0:07:29]} 11. Bb2 {[%emt 0:07:48]} Kh8 {[%emt 0:16:45]} 12. Bxc6 {[%emt 0:11:23]} bxc6 {[%emt 0:00:12]} 13. d4 {[%emt 0:00:01]} exd4 {[%emt 0:01:54]} 14. cxd4 {[%emt 0:00:14]} Bb6 {[%emt 0:02:19]} 15. Qc2 {[%emt 0:05:56]} d5 {[%emt 0:07:02]} 16. e5 {[%emt 0:04:40]} Nh5 {[%emt 0:04:52]} 17. Ng5 {[%emt 0:09:50]} g6 {[%emt 0:00:14]} 18. Ndf3 {[%emt 0:00:08]} c5 {[%emt 0:10:31]} 19. dxc5 {[%emt 0:05:22]} Bxc5 {[%emt 0:00:11]} 20. Rac1 {[%emt 0:00:16]} Bb6 {[%emt 0:00:36]} 21. Ba3 {[%emt 0:00:22]} Rfe8 {[%emt 0:01:58]} 22. Bc5 {[%emt 0:00:21]} Nf4 {[%emt 0:06:52]} 23. Bxb6 {[%emt 0:03:15]} cxb6 {[%emt 0:03:23]} 24. Qd2 {[%emt 0:00:26]} Nh5 {[%emt 0:00:24]} 25. Nd4 {[%emt 0:00:14]} Rac8 {[%emt 0:05:54]} 26. Rxc8 {[%emt 0:08:58]} Bxc8 {[%emt 0:00:27]} 27. Rc1 {[%emt 0:02:50]} Ba6 {[%emt 0:05:01]} 28. g4 {[%emt 0:00:36]} Ng7 {[%emt 0:02:45]} 29. Qf4 {[%emt 0:00:11]} Kg8 {[%emt 0:00:39]} 30. e6 {[%emt 0:00:26]} f6 {[%emt 0:01:21]} 31. Rc7 {[%emt 0:01:40]} Qb8 {[%emt 0:00:56]} 32. Nc6 {[%emt 0:00:38]} Qxc7 {[%emt 0:00:14]} 33. Qxc7 {[%emt 0:00:03]} fxg5 {[%emt 0:00:04]} 34. Qf7+ {[%emt 0:00:42]} Kh8 {[%emt 0:00:02]} 35. e7 {[%emt 0:00:15]} Rg8 {[%emt 0:00:28]} 36. Nd8 {[%emt 0:04:46]} d4 {[%emt 0:04:04]} 37. Qf6 {[%emt 0:00:43]} h6 {[%emt 0:00:28]} 38. Qxg6 {[%emt 0:00:31]} Re8 {[%emt 0:00:00]} 39. Nf7+ {[%emt 0:00:37]} Kg8 {[%emt 0:00:02]} 40. Nxh6+ {[%emt 0:00:07]} Kh8 {[%emt 0:00:05]} 41. Nf5 {[%emt 0:31:03]} 1-0

[Event "Oslo Chess Festival 2018"]
[Site "Oslo"]
[Date "2018.10.06"]
[Round "9"]
[White "Hobber, Anders"]
[Black "Siddharth, Jagadeesh"]
[Result "1/2-1/2"]
[ECO "D02"]
[WhiteElo "2314"]
[BlackElo "2124"]
[Annotator "NA"]
[PlyCount "71"]
[EventDate "2018.09.30"]
[EventCountry "NOR"]
[SourceTitle "playchess.com"]
[Source "ChessBase"]
[SourceQuality "1"]
[TimeControl "40/5400+30:1800+30"]

{[%evp 8,56,8,6,12,1,0,-8,0,-10,0,-8,20,-28,-14,-26,10,-8,2,0,0,10,0,5,5,-14,0,0,0,-39,-51,-66,-54,-42,-33,-35,-18,-85,-63,-58,-40,-91,-91,-89,-81,-85,-57,-91,-68,-87,-52]} 1. d4 {[%emt 0:00:00]} Nf6 {[%emt 0:00:00]} 2. Bf4 {[%emt 0:00:00]} e6 {[%emt 0:00:00]} 3. e3 {[%emt 0:00:14]} c5 {[%emt 0:00:37]} 4. Nd2 {[%emt 0:01:34]} d5 {[%emt 0:00:15]} 5. Ngf3 {[%emt 0:00:54]} Nc6 {[%emt 0:00:34]} 6. c3 {[%emt 0:00:21]} Bd6 {[%emt 0:00:30]} 7. Bg3 {[%emt 0:00:21]} O-O {[%emt 0:00:26]} 8. Bd3 {[%emt 0:00:30]} b6 {[%emt 0:01:49]} 9. Qe2 {[%emt 0:01:15] D02: Damenbauernspiele} (9. e4 Be7 10. e5 Nh5 11. Nf1 cxd4 12. Nxd4 Nxd4 13. cxd4 g6 14. Ne3 f5 15. exf6 Bxf6 16. Be2 Nxg3 17. hxg3 {½-½ (37) Nakamura,H (2787)-Svidler,P (2760) Moscow 2018}) 9... Qc7 {[%emt 0:06:51] LiveBook: 8 Games} 10. dxc5 {[%emt 0:27:27]} bxc5 {[%emt 0:00:03]} 11. e4 {[%emt 0:01:27]} Nd7 $146 {[%emt 0:07:23]} ({Vorgänger:} 11... dxe4 12. Nxe4 Nxe4 13. Bxe4 f5 14. Bxc6 Qxc6 15. Bxd6 Qxd6 16. Ne5 Ba6 {1-0 (41) Romero Holmes,A (2450)-Lorenzo Duran,M (2134) Pontevedra 2016}) 12. Bxd6 {[%emt 0:07:24]} Qxd6 {[%emt 0:00:03]} 13. O-O {[%emt 0:01:57]} Nce5 {[%emt 0:06:13]} 14. Rfe1 {[%emt 0:08:46]} Nxd3 {[%emt 0:05:58]} 15. Qxd3 {[%emt 0:00:07]} Ba6 {[%emt 0:00:09]} 16. Qe3 {[%emt 0:01:28]} Rfd8 {[%emt 0:12:21]} 17. Rad1 {[%emt 0:06:21]} Nb6 {[%emt 0:11:36]} 18. e5 {[%emt 0:02:44]} Qe7 {[%emt 0:00:08]} 19. Qf4 {[%emt 0:01:49]} Bd3 {[%emt 0:05:37]} 20. Re3 {[%emt 0:03:09]} Bc2 {[%emt 0:05:32]} 21. Rc1 {[%emt 0:00:38]} Bg6 {[%emt 0:02:19]} 22. Ree1 {[%emt 0:00:47]} Rac8 {[%emt 0:05:22]} 23. b3 {[%emt 0:04:39]} a5 {[%emt 0:02:39]} 24. Nf1 {[%emt 0:06:39] [#]} a4 $1 {[%emt 0:01:29]} 25. Ng3 {[%emt 0:03:20]} axb3 {[%emt 0:04:04]} 26. axb3 {[%emt 0:00:03]} Ra8 {[%emt 0:00:57]} 27. Ra1 {[%emt 0:03:45]} Rdb8 {[%emt 0:04:26]} 28. h4 {[%emt 0:00:53]} h6 $15 {[%emt 0:01:55]} 29. c4 {[%emt 0:02:50]} dxc4 {[%emt 0:02:17]} 30. bxc4 {[%emt 0:00:11]} Na4 {[%emt 0:00:56]} 31. h5 {[%emt 0:01:50]} Bh7 {[%emt 0:00:02]} 32. Ne4 {[%emt 0:04:41]} Nb2 {[%emt 0:02:51]} 33. Reb1 {[%emt 0:01:48]} Bxe4 {[%emt 0:01:09]} 34. Qxe4 {[%emt 0:00:43]} Rxa1 {[%emt 0:00:24]} 35. Rxa1 {[%emt 0:00:03]} Qb7 {[%emt 0:00:09]} 36. Qxb7 {[%emt 0:03:00]} 1/2-1/2